bitfinex/quotes_SOLUSD_20241220
["timestamp","ask_amount","ask_price","bid_price","bid_amount"]
[1734660251993,22.76295001,194.94,194.86,22.76295001]
[1734660252299,22.76295001,194.96,194.89,46.53983401]
[1734660253594,22.76295001,194.97,194.9,22.76295001]
[1734660253788,22.76295001,194.99,194.92,23.776884]
[1734660254005,0.77210773,194.98,194.92,23.776884]
[1734660254194,22.76295001,194.96,194.91,23.776884]
[1734660254509,23.53505774,194.95,194.87,22.76295001]
[1734660254684,22.76295001,194.92,194.85,22.76295001]
[1734660255009,22.76295001,194.88,194.8,22.76295001]
[1734660255196,0.77210773,194.87,194.8,22.76295001]
[1734660255397,22.76295001,194.89,194.82,22.76295001]
[1734660256126,0.77210773,194.9,194.83,23.776884]
[1734660256127,23.53505774,194.9,194.83,23.776884]
[1734660256515,22.76295001,194.88,194.83,23.776884]
[1734660256811,22.76295001,194.89,194.85,20.0]
[1734660256994,22.76295001,194.87,194.82,23.776884]
[1734660257183,22.76295001,194.88,194.83,20.0]
[1734660257381,23.53505774,194.87,194.83,20.0]
[1734660257614,22.76295001,194.84,194.76,22.76295001]
[1734660257818,22.76295001,194.82,194.74,22.76295001]
[1734660257996,23.53505774,194.81,194.74,22.76295001]
[1734660258197,0.77210773,194.81,194.78,22.76295001]
[1734660258396,22.76295001,194.88,194.8,22.76295001]
[1734660258593,22.76295001,194.89,194.82,22.76295001]
[1734660258794,29.19345001,194.91,194.84,22.76295001]
[1734660259312,22.76295001,194.93,194.85,22.76295001]
[1734660259511,6.2204,194.96,194.91,19.1484]
[1734660259712,0.77210773,194.97,194.91,19.1484]
[1734660260010,22.76295001,194.98,194.91,19.1484]
[1734660260396,0.77210773,194.97,194.91,19.1484]
[1734660260711,22.76295001,194.95,194.87,22.76295001]
[1734660260912,22.76295001,194.94,194.87,22.76295001]
[1734660261121,37.00514553,194.95,194.88,37.00514553]
[1734660261523,37.00514553,194.96,194.89,37.00514553]
[1734660261821,37.77725326,194.95,194.89,20.0]
[1734660262025,37.00514553,194.94,194.89,20.0]
[1734660262200,37.00514553,194.92,194.9,20.0]
[1734660262517,37.00514553,194.93,194.89,20.0]
[1734660262718,37.00514553,194.93,194.85,37.00514553]
[1734660263020,37.00514553,194.94,194.88,20.0]
[1734660263224,37.00514553,194.97,194.89,37.00514553]
[1734660263405,0.77210773,194.96,194.89,37.00514553]
[1734660263602,37.77725326,194.96,194.88,57.00514553]
[1734660263811,37.00514553,194.98,194.91,37.00514553]
[1734660264121,37.00514553,194.99,194.94,20.0]
[1734660264306,37.00514553,194.97,194.89,37.00514553]
[1734660264508,0.77210773,194.96,194.92,20.0]
[1734660264713,37.77725326,194.96,194.92,20.0]
[1734660265110,37.00514553,194.95,194.91,20.0]
[1734660265423,37.00514553,194.94,194.88,20.0]
[1734660265638,37.00514553,194.94,194.9,20.0]
[1734660265929,37.00514553,194.95,194.9,20.0]
[1734660266222,37.00514553,194.95,194.88,37.00514553]
[1734660266223,37.00514553,194.92,194.85,37.00514553]
[1734660266416,37.77725326,194.91,194.83,38.54954553]
[1734660266599,37.00514553,194.9,194.83,37.00514553]
[1734660266801,0.77210773,194.89,194.83,37.00514553]
[1734660267130,37.00514553,194.9,194.83,37.00514553]
[1734660267433,0.77210773,194.89,194.83,37.00514553]
[1734660267917,37.00514553,194.93,194.85,37.00514553]
[1734660268222,37.77725326,194.92,194.84,57.00514553]
[1734660268907,37.00514553,194.92,194.85,37.00514553]
[1734660269101,0.77210773,194.91,194.84,57.00514553]
[1734660269307,0.77210773,194.91,194.85,37.00514553]
[1734660269508,37.77725326,194.91,194.84,57.00514553]
[1734660269821,37.00514553,194.89,194.84,20.0]
[1734660270030,37.00514553,194.86,194.78,37.00514553]
[1734660270197,37.77725326,194.85,194.77,37.00514553]
[1734660270597,37.00514553,194.88,194.81,37.00514553]
[1734660270822,37.00514553,194.91,194.83,37.00514553]
[1734660271026,0.77210773,194.9,194.83,37.00514553]
[1734660271205,1.5824,194.93,194.77,0.89548975]
[1734660271206,2.35450773,194.93,194.86,37.00514553]
[1734660271412,0.77210773,194.93,194.86,37.00514553]
[1734660271623,37.77725326,194.93,194.86,37.00514553]
[1734660272298,37.77725326,194.93,194.85,37.00514553]
[1734660272694,37.00514553,194.92,194.85,37.00514553]
[1734660272899,0.77210773,194.91,194.85,37.00514553]
[1734660273314,0.77210773,194.91,194.81,12.8328]
[1734660273315,37.00514553,194.9,194.84,20.0]
[1734660273722,37.00514553,194.91,194.84,20.0]
[1734660273923,0.77210773,194.9,194.84,20.0]
[1734660274227,0.77210773,194.9,194.84,57.00514553]
[1734660274415,37.77725326,194.93,194.86,37.00514553]
[1734660274625,37.77725326,194.93,194.85,37.00514553]
[1734660274806,37.00514553,194.92,194.85,37.00514553]
[1734660275110,37.00514553,194.9,194.81,37.00514553]
[1734660275312,37.00514553,194.84,194.77,37.00514553]
[1734660275509,37.00514553,194.87,194.79,37.00514553]
[1734660275717,37.00514553,194.88,194.8,37.00514553]
[1734660276029,37.00514553,194.9,194.83,37.00514553]
[1734660276404,37.00514553,194.94,194.86,37.00514553]
[1734660276610,37.00514553,194.94,194.86,37.77467339]
[1734660276805,37.00514553,194.94,194.86,37.00514553]
[1734660277320,0.77210773,194.93,194.86,37.00514553]
[1734660278734,37.00514553,194.94,194.86,37.00514553]
[1734660278933,0.77210773,194.93,194.86,37.00514553]
[1734660279630,37.00514553,194.94,194.86,37.00514553]
[1734660280533,37.00514553,194.94,194.87,23.776884]
[1734660280726,37.77725326,194.98,194.9,37.00514553]
[1734660280933,37.00514553,194.98,194.9,37.00514553]
[1734660281122,22.76253802,194.99,194.91,22.76253802]
[1734660281322,22.76253802,194.97,194.89,22.76253802]
[1734660282138,22.76253802,194.97,194.9,42.76253802]
[1734660282805,22.76253802,194.97,194.91,23.902374]
[1734660283011,22.76253802,194.97,194.91,23.776884]
[1734660283234,22.76253802,194.97,194.9,55.58943802]
[1734660283729,22.76253802,194.96,194.89,20.0]
[1734660284230,22.76253802,194.96,194.89,42.76253802]
[1734660284722,22.76253802,194.99,194.91,22.76253802]
[1734660284919,22.76253802,194.98,194.9,46.53942202]
[1734660287133,22.76253802,194.99,194.92,22.76253802]
[1734660287318,0.6482908,195.01,194.95,46.53942202]
[1734660287711,0.6482908,195.01,194.94,46.53942202]
[1734660287911,0.6482908,195.01,194.95,22.76253802]
[1734660288833,0.6482908,195.01,194.98,22.76253802]
[1734660289316,0.6482908,195.01,194.99,46.53942202]
[1734660289514,0.6482908,195.01,194.99,23.776884]
[1734660289712,0.6482908,195.01,195.0,46.53942202]
[1734660290124,0.6482908,195.01,195.0,23.776884]
[1734660290319,0.6482908,195.01,195.0,46.53942202]
[1734660292508,0.6482908,195.01,194.97,42.76253802]
[1734660292740,0.6482908,195.01,194.97,22.76253802]
[1734660292923,0.6482908,195.01,194.98,22.76253802]
[1734660294737,0.6482908,195.01,194.98,20.0]
[1734660294917,0.6482908,195.01,194.98,42.76253802]
[1734660295112,0.6482908,195.01,194.99,22.76253802]
[1734660295958,0.6482908,195.01,194.98,20.76902652]
[1734660295959,0.6482908,195.01,195.0,22.76253802]
[1734660298742,0.77210773,195.12,195.09,22.76253802]
[1734660300063,6.98160773,195.13,195.08,22.76253802]
[1734660300730,6.98160773,195.13,195.09,22.76253802]
[1734660300937,6.98160773,195.13,195.08,22.76253802]
[1734660301434,6.98160773,195.13,194.96,108.5455]
[1734660301435,22.76253802,195.09,194.96,12.8226]
[1734660301642,22.76253802,195.06,194.99,22.76253802]
[1734660301843,0.77210773,195.05,194.99,22.76253802]
[1734660302021,0.77210773,195.05,194.96,12.8226]
[1734660302022,0.77210773,195.09,195.03,22.76253802]
[1734660302223,6.2095,195.13,194.97,0.12549]
[1734660302224,22.76253802,195.11,195.04,22.76253802]
[1734660302548,0.77210773,195.12,195.07,22.76253802]
[1734660302943,22.76253802,195.17,195.1,22.76253802]
[1734660303141,0.77210773,195.16,195.12,22.76253802]
[1734660303823,0.77210773,195.16,195.11,22.76253802]
[1734660304025,22.76253802,195.18,195.13,22.76253802]
[1734660304026,0.77210773,195.18,195.13,22.76253802]
[1734660304244,0.6482908,195.21,195.17,22.76253802]
[1734660304431,0.6482908,195.21,195.2,22.76253802]
[1734660305323,0.6482908,195.21,195.2,22.88802802]
[1734660305650,0.6482908,195.21,195.2,47.43304573]
[1734660305949,0.6482908,195.21,195.2,22.76253802]
[1734660306644,0.6482908,195.21,195.2,22.88802802]
[1734660306852,9.08e-05,195.21,195.2,47.43297521]
[1734660307770,24.33293802,195.37,195.3,22.76253802]
[1734660308060,28.81033802,195.39,195.32,22.76253802]
[1734660308244,0.77210773,195.38,195.32,22.76253802]
[1734660308826,28.81033802,195.39,195.32,22.76253802]
[1734660309021,6.0478,195.39,195.33,22.76253802]
[1734660309227,6.81990773,195.39,195.33,22.76253802]
[1734660309441,23.41082882,195.41,195.34,22.76253802]
[1734660309643,0.6482908,195.41,195.35,22.76253802]
[1734660309842,0.6482908,195.41,195.37,22.76253802]
[1734660310169,0.6482908,195.41,195.33,20.0]
[1734660310170,0.6482908,195.41,195.4,22.76253802]
[1734660310848,0.6482908,195.41,195.4,41.87055038]
[1734660311029,22.76253802,195.47,195.4,22.76253802]
[1734660311425,4.03619493,195.49,195.43,22.76253802]
[1734660311662,4.03619493,195.49,195.44,22.76253802]
[1734660311825,22.76253802,195.51,195.44,22.76253802]
[1734660312453,22.76253802,195.52,195.45,22.76253802]
[1734660312638,22.76253802,195.54,195.47,22.76253802]
[1734660312836,22.76253802,195.56,195.49,22.76253802]
[1734660313245,22.76253802,195.52,195.5,10.32278256]
[1734660313449,22.76253802,195.51,195.5,10.32278256]
[1734660313649,22.76253802,195.55,195.5,41.38767456]
[1734660313849,22.76253802,195.56,195.5,41.38767456]
[1734660314155,22.76253802,195.59,195.53,15.53160771]
[1734660314542,22.76253802,195.59,195.58,15.53160771]
[1734660314747,6.9279908,195.61,195.58,15.53160771]
[1734660314949,0.6482908,195.61,195.58,15.53160771]
[1734660315143,0.6482908,195.61,195.58,10.26542393]
[1734660315338,0.6482908,195.61,195.59,23.90295562]
[1734660315937,0.6482908,195.61,195.6,10.26542393]
[1734660316444,0.6482908,195.61,195.6,56.80484595]
[1734660317549,0.6482908,195.61,195.6,56.93033595]
[1734660317748,0.6482908,195.61,195.6,62.94373595]
[1734660318156,0.6482908,195.61,195.6,33.02796195]
[1734660318334,0.6482908,195.61,195.6,10.26542393]
[1734660319457,0.6482908,195.61,195.58,22.76253802]
[1734660319662,0.6482908,195.61,195.59,22.76253802]
[1734660319865,0.6482908,195.61,195.58,22.76253802]
[1734660320285,0.6482908,195.61,195.57,22.76253802]
[1734660320559,0.6482908,195.61,195.56,22.76253802]
[1734660321062,0.6482908,195.61,195.57,22.76253802]
[1734660322166,0.6482908,195.61,195.56,22.76253802]
[1734660322359,0.6482908,195.61,195.55,22.76253802]
[1734660322552,22.76253802,195.58,195.51,22.76253802]
[1734660322760,22.76253802,195.53,195.46,22.76253802]
[1734660323066,22.76253802,195.52,195.45,22.76253802]
[1734660323375,22.76253802,195.56,195.49,22.76253802]
[1734660323583,0.6482908,195.61,195.5,0.76704265]
[1734660323866,0.6482908,195.61,195.51,0.12549]
[1734660324263,0.6482908,195.61,195.52,0.76685813]
[1734660324560,0.6482908,195.61,195.6,22.76253802]
[1734660325580,0.6482908,195.61,195.54,0.89220233]
[1734660325581,0.6482908,195.61,195.57,22.76253802]
[1734660325750,0.6482908,195.61,195.55,22.76253802]
[1734660326074,0.6482908,195.61,195.56,22.76253802]
[1734660326759,0.6482908,195.61,195.52,23.776884]
[1734660326760,0.6482908,195.61,195.57,22.76253802]
[1734660326959,0.6482908,195.61,195.6,46.53942202]
[1734660327159,9.08e-05,195.61,195.6,46.66491202]
[1734660327365,9.08e-05,195.61,195.6,47.43137036]
[1734660327754,22.76253802,195.76,195.63,20.0]
[1734660328079,6.4917,195.77,195.71,22.76253802]
[1734660328249,29.25423802,195.77,195.7,22.76253802]
[1734660328670,22.76253802,195.77,195.69,22.76253802]
[1734660328964,22.76253802,195.78,195.7,22.76253802]
[1734660329268,22.76253802,195.77,195.7,22.76253802]
[1734660329472,22.76253802,195.78,195.7,22.76253802]
[1734660330149,22.76253802,195.77,195.69,22.76253802]
[1734660330361,22.76253802,195.73,195.66,22.76253802]
[1734660330568,22.76253802,195.75,195.67,22.76253802]
[1734660330751,22.76253802,195.76,195.69,22.76253802]
[1734660330953,0.6482908,195.8,195.72,22.76253802]
[1734660331251,23.41082882,195.8,195.73,22.76253802]
[1734660331438,23.52880455,195.79,195.72,22.76253802]
[1734660332065,22.76253802,195.78,195.7,22.76253802]
[1734660332268,0.6482908,195.8,195.65,42.76253802]
[1734660332269,22.76253802,195.73,195.65,42.76253802]
[1734660332445,22.76253802,195.69,195.62,22.76253802]
[1734660332755,0.76626653,195.68,195.61,22.76253802]
[1734660332952,23.52880455,195.68,195.56,1.5392]
[1734660333150,22.76253802,195.64,195.56,22.76253802]
[1734660333360,23.52880455,195.63,195.56,22.76253802]
[1734660333787,22.76253802,195.62,195.54,22.76253802]
[1734660333974,22.76253802,195.57,195.5,22.76253802]
[1734660334293,0.76626653,195.56,195.49,22.76253802]
[1734660334452,0.76626653,195.56,195.46,12.7899]
[1734660334453,23.52880455,195.56,195.48,22.76253802]
[1734660334651,22.76253802,195.54,195.46,22.76253802]
[1734660334881,22.76253802,195.49,195.42,22.76253802]
[1734660335055,22.76253802,195.49,195.36,24.35513802]
[1734660335056,36.80440119,195.46,195.39,36.80440119]
[1734660335258,36.80440119,195.44,195.37,36.80440119]
[1734660335469,0.76626653,195.43,195.37,36.80440119]
[1734660335667,0.76626653,195.43,195.35,36.80440119]
[1734660335851,36.80440119,195.42,195.35,36.80440119]
[1734660336053,37.57066772,195.41,195.33,36.80440119]
[1734660336462,36.80440119,195.37,195.29,36.80440119]
[1734660336660,0.76626653,195.36,195.31,36.80440119]
[1734660336872,36.80440119,195.39,195.31,36.80440119]
[1734660337077,0.76626653,195.38,195.31,36.80440119]
[1734660338090,36.80440119,195.35,195.27,36.80440119]
[1734660338254,0.76626653,195.34,195.29,36.80440119]
[1734660338754,0.76626653,195.36,195.29,36.80440119]
[1734660338954,36.80440119,195.35,195.27,36.80440119]
[1734660339151,0.76626653,195.34,195.27,36.80440119]
[1734660340175,6.2823,195.44,195.21,14.3283]
[1734660340176,36.80440119,195.39,195.32,36.80440119]
[1734660340359,0.76626653,195.38,195.32,36.80440119]
[1734660340750,37.57066772,195.38,195.3,36.80440119]
[1734660341579,0.76626653,195.38,195.31,36.80440119]
[1734660341954,0.76626653,195.38,195.32,36.80440119]
[1734660342162,0.76626653,195.39,195.32,36.80440119]
[1734660342356,37.57066772,195.39,195.32,36.80440119]
[1734660342562,36.80440119,195.37,195.29,36.80440119]
[1734660342761,37.57066772,195.36,195.28,36.80440119]
[1734660343060,36.80440119,195.32,195.25,36.80440119]
[1734660343257,36.80440119,195.28,195.21,36.80440119]
[1734660343472,0.76626653,195.27,195.21,36.80440119]
[1734660344053,37.57066772,195.27,195.2,36.80440119]
[1734660344362,36.80440119,195.22,195.12,22.57520848]
[1734660344670,36.80440119,195.2,195.12,36.80440119]
[1734660344873,36.80440119,195.18,195.11,0.6482908]
[1734660345182,37.57066772,195.17,195.11,0.6482908]
[1734660345398,36.80440119,195.16,195.11,0.6482908]
[1734660345600,49.60880119,195.25,195.11,0.6482908]
[1734660345601,36.80440119,195.14,195.11,0.6482908]
[1734660345875,36.80440119,195.18,195.11,0.6482908]
[1734660346073,0.76626653,195.17,195.11,37.45269199]
[1734660346271,36.80440119,195.15,195.11,0.6482908]
[1734660346456,36.80440119,195.13,195.11,0.6482908]
[1734660346657,0.76626653,195.12,195.11,0.6482908]
[1734660346878,36.80440119,195.15,195.11,0.6482908]
[1734660347160,36.80440119,195.13,195.11,0.6482908]
[1734660347378,0.76626653,195.12,195.11,0.6482908]
[1734660350185,61.34755172,195.12,195.11,9.08e-05]
[1734660350405,36.590084,195.11,194.95,36.80440119]
[1734660350570,36.80440119,195.02,194.95,36.80440119]
[1734660350775,36.80440119,195.04,194.95,36.80440119]
[1734660351101,36.80440119,195.05,194.97,36.80440119]
[1734660351286,12.8132,195.11,194.97,36.80440119]
[1734660351287,37.57066772,195.04,194.97,36.80440119]
[1734660351490,37.57066772,195.04,194.96,36.80440119]
[1734660351491,36.80440119,195.03,194.96,36.80440119]
[1734660351786,0.76626653,195.02,194.96,36.80440119]
[1734660351985,36.80440119,195.06,194.98,36.80440119]
[1734660352164,0.76626653,195.05,194.98,36.80440119]
[1734660352364,36.80440119,195.06,194.98,36.80440119]
[1734660352667,36.80440119,195.09,195.02,36.80440119]
[1734660352887,0.76626653,195.08,195.02,36.80440119]
[1734660353609,36.80440119,195.1,195.03,36.80440119]
[1734660353764,36.80440119,195.08,195.0,36.80440119]
[1734660353967,36.80440119,195.06,194.99,36.80440119]
[1734660354265,37.57066772,195.05,194.97,56.80440119]
[1734660354467,36.80440119,195.03,194.97,20.0]
[1734660354666,36.80440119,195.05,194.97,56.80440119]
[1734660354893,0.76626653,195.04,194.98,36.80440119]
[1734660355079,0.76626653,195.04,194.97,36.80440119]
[1734660355667,37.57066772,195.04,194.97,36.80440119]
[1734660355872,36.80440119,195.07,194.98,36.80440119]
[1734660356067,0.76626653,195.06,194.98,36.80440119]
[1734660356663,36.80440119,195.07,194.96,20.0]
[1734660356879,36.80440119,195.1,195.02,36.80440119]
[1734660357180,37.57066772,195.09,195.02,36.80440119]
[1734660357380,37.57066772,195.09,195.01,36.80440119]
[1734660357590,37.57066772,195.09,195.02,36.80440119]
[1734660357887,36.80440119,195.12,195.05,36.80440119]
[1734660358089,0.76626653,195.11,195.05,36.80440119]
[1734660358287,36.80440119,195.14,195.06,36.80440119]
[1734660358483,0.76626653,195.13,195.07,36.80440119]
[1734660358681,36.80440119,195.1,195.03,36.80440119]
[1734660358878,36.80440119,195.08,195.01,36.80440119]
[1734660359078,36.80440119,195.06,194.99,36.80440119]
[1734660359280,36.80440119,195.04,194.97,36.80440119]
[1734660359581,0.76626653,195.03,194.97,36.80440119]
[1734660359782,36.80440119,195.04,194.97,36.80440119]
[1734660359982,37.57066772,195.03,194.96,36.80440119]
[1734660360179,37.57066772,195.03,194.95,36.80440119]
[1734660360587,36.80440119,195.07,195.0,36.80440119]
[1734660360781,36.80440119,195.07,194.96,0.76929148]
[1734660360782,36.80440119,195.12,195.04,36.80440119]
[1734660361075,37.57066772,195.11,195.03,36.80440119]
[1734660361378,37.57066772,195.11,195.04,36.80440119]
[1734660361683,36.80440119,195.09,195.01,36.80440119]
[1734660361902,36.80440119,195.14,195.0,39.84433754]
[1734660361903,36.80440119,195.07,195.0,39.84433754]
[1734660362091,36.80440119,195.09,195.01,36.80440119]
[1734660362269,36.80440119,195.1,195.02,36.80440119]
[1734660362472,0.76626653,195.09,195.02,36.80440119]
[1734660362690,36.80440119,195.11,195.04,36.80440119]
[1734660362895,36.80440119,195.13,195.05,36.80440119]
[1734660363210,0.76626653,195.12,195.05,36.80440119]
[1734660363429,0.76626653,195.12,195.07,36.80440119]
[1734660363583,36.80440119,195.17,195.1,36.80440119]
[1734660363779,0.76626653,195.16,195.1,36.80440119]
[1734660364794,36.80440119,195.12,195.05,36.80440119]
[1734660365003,36.80440119,195.09,195.01,56.80440119]
[1734660365208,37.57066772,195.11,195.03,36.80440119]
[1734660365503,0.76626653,195.11,194.98,1.655]
[1734660365801,6.5538,195.1,194.93,6.4681]
[1734660365993,36.80440119,195.07,194.99,36.80440119]
[1734660366194,36.80440119,195.07,195.0,36.80440119]
[1734660366389,0.76626653,195.09,195.03,36.80440119]
[1734660366582,36.80440119,195.11,195.03,36.80440119]
[1734660366803,37.57066772,195.09,195.02,36.80440119]
[1734660367686,37.57066772,195.09,195.02,56.80440119]
[1734660367887,36.80440119,195.1,195.03,36.80440119]
[1734660368292,37.57066772,195.13,195.05,36.80440119]
[1734660368887,36.80440119,195.12,195.05,36.80440119]
[1734660369087,36.80440119,195.14,195.06,36.80440119]
[1734660369309,0.76626653,195.13,195.07,36.80440119]
[1734660369510,0.76626653,195.14,195.08,36.80440119]
[1734660369789,37.57066772,195.14,195.08,36.80440119]
[1734660369995,0.76626653,195.14,195.07,36.80440119]
[1734660371707,0.76626653,195.14,195.03,38.45200119]
[1734660371708,36.80440119,195.11,195.03,38.45200119]
[1734660371886,36.80440119,195.09,195.01,36.80440119]
[1734660372091,36.80440119,195.07,194.99,36.80440119]
[1734660372391,0.76626653,195.06,194.99,36.80440119]
[1734660373096,36.80440119,195.05,194.99,36.80440119]
[1734660373401,0.76626653,195.04,194.97,36.80440119]
[1734660374190,36.80440119,195.01,194.93,36.80440119]
[1734660374395,0.76626653,195.0,194.93,36.80440119]
[1734660375315,0.76626653,195.0,194.95,36.80440119]
[1734660375609,36.80440119,195.03,194.95,36.80440119]
[1734660375813,36.80440119,195.05,194.97,36.80440119]
[1734660376009,37.57066772,195.04,194.96,36.80440119]
[1734660376249,36.80440119,195.07,194.99,36.80440119]
[1734660376518,37.57066772,195.06,194.99,36.80440119]
[1734660376894,37.57066772,195.06,194.98,36.80440119]
[1734660377412,37.57066772,195.06,195.0,36.80440119]
[1734660377593,43.18630119,195.09,195.01,36.80440119]
[1734660377793,0.76626653,195.08,195.02,36.80440119]
[1734660378016,0.76626653,195.09,195.03,36.80440119]
[1734660378213,0.76626653,195.1,195.04,36.80440119]
[1734660378511,0.76626653,195.1,195.05,36.80440119]
[1734660379199,0.76626653,195.11,195.04,36.80440119]
[1734660379399,36.80440119,195.1,195.03,20.0]
[1734660379618,0.76626653,195.09,195.02,36.80440119]
[1734660379817,0.76626653,195.09,195.04,36.80440119]
[1734660380016,0.76626653,195.11,195.01,0.12549]
[1734660380219,36.80440119,195.16,195.09,36.80440119]
[1734660380399,1.5946,195.19,195.06,36.80440119]
[1734660380400,36.80440119,195.13,195.06,36.80440119]
[1734660381318,0.76626653,195.12,195.03,36.80440119]
[1734660381520,36.80440119,195.09,195.03,20.0]
[1734660381724,36.80440119,195.09,195.02,36.80440119]
[1734660381925,36.80440119,195.11,195.04,20.0]
[1734660382131,36.80440119,195.15,195.07,36.80440119]
[1734660382306,36.80440119,195.13,195.06,36.80440119]
[1734660382508,0.76626653,195.12,195.06,36.80440119]
[1734660383017,0.76626653,195.12,195.07,36.80440119]
[1734660383214,0.76626653,195.13,195.08,36.80440119]
[1734660383526,37.57066772,195.15,195.07,36.80440119]
[1734660384024,0.76626653,195.15,195.08,36.80440119]
[1734660384225,36.80440119,195.16,195.08,36.80440119]
[1734660384404,0.76626653,195.15,195.08,36.80440119]
[1734660384720,36.80440119,195.14,195.06,36.80440119]
[1734660385119,0.76626653,195.13,195.06,36.80440119]
[1734660385323,36.80440119,195.16,195.08,36.80440119]
[1734660385515,0.76626653,195.15,195.08,56.80440119]
[1734660385914,36.80440119,195.14,195.01,12.8198]
[1734660386124,36.80440119,195.11,195.03,36.80440119]
[1734660386325,14.4032,195.19,195.02,1.85959236]
[1734660386326,36.80440119,195.09,195.02,1.85959236]
[1734660386631,0.76626653,195.08,195.02,1.85959236]
[1734660386927,0.76626653,195.08,195.02,22.73750739]
[1734660387426,0.76626653,195.09,195.02,22.73750739]
[1734660388832,0.76626653,195.09,195.03,1.86873468]
[1734660389310,0.76626653,195.09,195.02,22.73750739]
[1734660389512,22.73750739,195.04,194.93,14.406]
[1734660389707,22.73750739,195.02,194.93,24.31900739]
[1734660389933,22.73750739,195.0,194.94,4.86367066]
[1734660390130,22.73750739,194.98,194.91,23.38579819]
[1734660390316,0.76626653,194.97,194.91,23.38579819]
[1734660391325,0.76626653,194.99,194.93,22.73750739]
[1734660391730,0.76626653,195.04,194.97,22.73750739]
[1734660391911,23.50377392,195.04,194.97,22.73750739]
[1734660392229,22.73750739,195.0,194.93,22.73750739]
[1734660392433,0.76626653,194.99,194.93,22.73750739]
[1734660392634,23.50377392,194.99,194.91,23.38579819]
[1734660393030,23.50377392,194.99,194.92,1.87078673]
[1734660393208,22.73750739,194.95,194.92,1.87078673]
[1734660393530,35.55600739,195.03,194.91,0.6482908]
[1734660393531,22.73750739,194.93,194.91,0.6482908]
[1734660393734,0.76626653,194.94,194.91,0.6482908]
[1734660393735,23.50377392,194.92,194.91,0.6482908]
[1734660395125,70.01816531,194.92,194.91,0.6482908]
[1734660395318,20.0,194.89,194.76,22.73750739]
[1734660395533,22.73750739,194.84,194.76,22.73750739]
[1734660395716,0.76626653,194.83,194.76,22.73750739]
[1734660395911,0.76626653,194.83,194.77,22.73750739]
[1734660396112,0.76626653,194.83,194.76,22.73750739]
[1734660396331,0.76626653,194.83,194.78,22.73750739]
[1734660396535,0.76626653,194.83,194.77,22.73750739]
[1734660396839,22.73750739,194.85,194.77,22.73750739]
[1734660396840,0.76626653,194.84,194.77,22.73750739]
[1734660397731,22.73750739,194.8,194.72,23.38579819]
[1734660397937,1.5931,194.85,194.72,23.38579819]
[1734660397938,22.73750739,194.77,194.72,0.6482908]
[1734660398121,23.50377392,194.76,194.72,0.6482908]
[1734660398322,22.73750739,194.73,194.72,0.6482908]
[1734660399224,29.00440739,194.73,194.72,0.6482908]
[1734660399423,52.78129139,194.73,194.72,0.6482908]
[1734660399741,20.0,194.7,194.57,22.73750739]
[1734660399940,22.73750739,194.64,194.57,22.73750739]
[1734660400254,0.76626653,194.63,194.58,22.73750739]
[1734660400412,23.50377392,194.65,194.57,22.73750739]
[1734660400619,22.73750739,194.64,194.57,22.73750739]
[1734660400845,22.73750739,194.64,194.53,12.8508]
[1734660400846,0.76626653,194.63,194.53,12.8508]
[1734660401140,0.76626653,194.63,194.57,37.12126065]
[1734660401324,0.76626653,194.63,194.53,12.8508]
[1734660401325,37.12126065,194.61,194.53,37.12126065]
[1734660401641,37.12126065,194.59,194.52,37.76955145]
[1734660401837,37.88752718,194.58,194.52,0.6482908]
[1734660402062,37.12126065,194.63,194.55,37.12126065]
[1734660402359,0.76626653,194.62,194.55,37.12126065]
[1734660402569,37.12126065,194.65,194.57,37.12126065]
[1734660402739,37.12126065,194.67,194.6,37.12126065]
[1734660402938,0.76626653,194.66,194.59,37.12126065]
[1734660403457,0.76626653,194.66,194.61,37.12126065]
[1734660403658,37.12126065,194.71,194.64,37.12126065]
[1734660403956,37.88752718,194.7,194.62,37.12126065]
[1734660404158,0.76626653,194.7,194.63,37.12126065]
[1734660404327,37.12126065,194.69,194.62,37.12126065]
[1734660404531,0.76626653,194.68,194.63,37.12126065]
[1734660404838,37.88752718,194.7,194.62,37.12126065]
[1734660405535,37.88752718,194.7,194.58,1.6018]
[1734660405536,37.88752718,194.7,194.63,37.12126065]
[1734660406459,0.76626653,194.7,194.59,37.12126065]
[1734660406667,37.12126065,194.66,194.59,37.12126065]
[1734660406831,37.12126065,194.7,194.61,37.12126065]
[1734660407024,37.12126065,194.68,194.6,37.12126065]
[1734660407226,0.76626653,194.67,194.6,37.12126065]
[1734660408020,37.12126065,194.7,194.62,37.12126065]
[1734660408343,1.6585,194.78,194.56,12.8495]
[1734660408344,37.12126065,194.76,194.69,37.12126065]
[1734660408546,0.76626653,194.75,194.69,37.12126065]
[1734660408747,37.12126065,194.74,194.66,37.12126065]
[1734660409067,0.76626653,194.73,194.66,37.12126065]
[1734660409364,37.12126065,194.78,194.7,37.12126065]
[1734660409532,0.76626653,194.77,194.7,37.12126065]
[1734660411686,37.12126065,194.71,194.6,12.8465]
[1734660411987,37.12126065,194.65,194.57,40.2742382]
[1734660412160,0.76626653,194.64,194.57,40.2742382]
[1734660412566,37.12126065,194.67,194.59,37.12126065]